bitfinex/quotes_ETHUSD_20220202
["timestamp","ask_amount","ask_price","bid_price","bid_amount"]
[1643802067606,1.51222716,2767.1,2766.5,1.4264]
[1643802067806,1.51496666,2767.1,2766.6,0.0766613]
[1643802068411,1.93314146,2767.1,2766.6,0.0766613]
[1643802068712,1.51222716,2767.0,2766.5,1.7264]
[1643802068912,1.51222716,2766.9,2766.5,1.7264]
[1643802069155,1.51222716,2766.8,2766.7,0.9033954]
[1643802069354,1.51222716,2766.8,2766.7,1.2033954]
[1643802070954,1.47143658,2766.8,2766.7,1.2033954]
[1643802071156,0.1834395,2767.2,2766.7,1.2033954]
[1643802071759,0.1834395,2767.2,2766.7,0.9033954]
[1643802073417,0.0027395,2767.2,2766.7,0.9033954]
[1643802073617,1.23588899,2767.3,2766.7,0.9033954]
[1643802074819,0.85074404,2767.3,2766.7,0.9033954]
[1643802075619,0.47161775,2767.3,2766.7,0.9033954]
[1643802075819,0.0027395,2767.3,2766.7,1.8067554]
[1643802076861,0.0027395,2767.3,2766.7,2.20799043]
[1643802077662,0.0027395,2767.3,2766.7,1.8067554]
[1643802078968,0.42351314,2767.3,2766.7,1.8067554]
[1643802080270,0.42351314,2767.3,2766.8,3.16406721]
[1643802080271,0.0027395,2767.3,2766.8,3.16406721]
[1643802080520,0.1834395,2767.5,2766.9,1.42627]
[1643802080718,0.0027395,2767.5,2766.9,1.90687]
[1643802081120,0.0027395,2767.7,2767.0,2.0]
[1643802081522,0.0027395,2767.7,2767.3,0.81901861]
[1643802081720,1.1134662,2767.8,2767.4,0.9031788]
[1643802082619,1.1134662,2767.8,2767.4,2.73479644]
[1643802084024,1.1134662,2767.8,2767.4,4.54106644]
[1643802084860,0.0027395,2767.9,2767.4,4.54106644]
[1643802084861,0.0027395,2767.9,2767.5,6.0]
[1643802085058,0.3,2768.0,2767.7,0.90304]
[1643802085257,0.3,2768.0,2767.8,0.523]
[1643802086960,0.079174,2768.1,2767.8,1.42597]
[1643802087259,0.079174,2768.1,2767.9,2.89982534]
[1643802087465,0.079174,2768.1,2768.0,1.87994722]
[1643802087760,0.079174,2768.1,2768.0,0.24526629]
[1643802090513,0.079174,2768.1,2767.9,0.90297]
[1643802090715,0.079174,2768.1,2767.7,1.0836122]
[1643802091114,1.46795295,2768.0,2767.7,1.0836122]
[1643802091754,1.46795295,2768.0,2767.5,0.1806]
[1643802092458,2.31636972,2768.0,2767.5,0.1806]
[1643802092665,2.31636972,2768.0,2767.0,1.80615]
[1643802092666,1.96467817,2767.9,2767.4,0.1806]
[1643802092860,1.46795295,2767.8,2766.9,0.1806]
[1643802093058,1.46795295,2767.8,2766.8,2.0566857]
[1643802093059,0.1806,2767.7,2766.8,2.0566857]
[1643802093261,1.46795295,2767.6,2766.9,0.07664802]
[1643802093458,0.70131191,2767.0,2766.9,0.07664802]
[1643802094059,0.70131191,2767.0,2766.2,0.60847253]
[1643802094060,3.5,2766.9,2766.2,0.60847253]
[1643802094261,2.0,2766.8,2766.1,0.1807]
[1643802094462,0.1807,2766.9,2765.8,0.1807]
[1643802094760,3.08641188,2767.0,2765.7,0.1807]
[1643802094761,0.35929217,2765.9,2765.7,0.1807]
[1643802095163,0.78923081,2765.8,2765.7,0.1807]
[1643802095411,0.78923081,2765.8,2765.4,0.25]
[1643802095412,0.78923081,2765.8,2765.5,0.1807]
[1643802095609,0.78923081,2765.8,2765.4,0.68571058]
[1643802096109,0.78923081,2765.8,2765.3,0.68571058]
[1643802099354,0.78923081,2765.8,2765.2,0.68571058]
[1643802099555,0.96993081,2765.8,2765.2,0.68571058]
[1643802099755,0.96993081,2765.8,2765.1,0.68571058]
[1643802099959,2.00951456,2765.7,2764.9,0.4807]
[1643802100157,0.1807,2765.6,2764.9,0.4807]
[1643802100358,0.69228588,2765.3,2764.9,0.4807]
[1643802101360,0.34870103,2765.2,2764.9,0.4807]
[1643802101758,0.34870103,2765.2,2764.8,0.68571058]
[1643802101759,0.34870103,2765.2,2764.8,0.98571058]
[1643802101959,0.34870103,2765.2,2764.8,0.3]
[1643802102161,0.34870103,2765.2,2764.7,1.16636058]
[1643802102562,0.20223232,2765.6,2764.8,0.09799821]
[1643802102762,0.02153232,2765.6,2764.9,0.68571058]
[1643802103221,0.02153232,2765.6,2765.0,1.08370879]
[1643802103420,0.02153232,2765.6,2765.3,0.3838206]
[1643802103620,0.02153232,2765.6,2765.3,2.23177364]
[1643802103817,0.02153232,2765.6,2765.3,2.71247364]
[1643802104020,0.02153232,2765.6,2765.3,1.9490006]
[1643802104419,0.02153232,2765.6,2765.3,3.75621052]
[1643802104620,0.02153232,2765.6,2765.3,4.65999252]
[1643802104819,0.02153232,2765.6,2765.3,2.8527826]
[1643802105021,0.02153232,2765.6,2765.4,0.76768397]
[1643802105517,0.02153232,2765.6,2765.3,2.8527826]
[1643802105723,0.02153232,2765.6,2765.3,1.9490006]
[1643802106683,0.02153232,2765.6,2765.3,0.66135]
[1643802107672,0.01937909,2765.6,2765.3,0.66135]
[1643802107872,0.01937909,2765.6,2765.4,0.430099]
[1643802108577,0.01937909,2765.6,2765.3,0.48065]
[1643802108776,0.01937909,2765.6,2765.3,0.18065]
[1643802109577,0.01937909,2765.6,2765.3,0.51801392]
[1643802109979,0.01937909,2765.6,2765.3,0.81801392]
[1643802114024,0.01937909,2765.6,2765.4,0.07667579]
[1643802119837,0.01937909,2765.6,2765.5,0.76398677]
[1643802120040,0.01937909,2765.6,2765.5,0.84066256]
[1643802120238,0.01937909,2765.6,2765.5,0.37667579]
[1643802120637,0.01937909,2765.6,2765.5,0.07667579]
[1643802121040,0.01937909,2765.6,2765.4,0.07667579]
[1643802126513,0.00915384,2765.6,2765.4,0.07667579]
[1643802127717,0.00823846,2765.6,2765.4,0.07667579]
[1643802136655,0.00823846,2765.6,2765.4,0.76238637]
[1643802136858,0.00823846,2765.6,2765.5,0.76238637]
[1643802137066,0.00823846,2765.6,2765.4,0.76238637]
[1643802137457,0.00823846,2765.6,2765.4,0.07667579]
[1643802137963,0.00823846,2765.6,2765.5,0.68833582]
[1643802138260,0.00823846,2765.6,2765.5,0.07667579]
[1643802138662,0.00823846,2765.6,2765.4,0.07667579]
[1643802138861,0.00823846,2765.6,2765.5,0.07667579]
[1643802139062,0.00823846,2765.6,2765.5,0.7650358]
[1643802139263,0.00823846,2765.6,2765.5,0.76504008]
[1643802139566,0.00823846,2765.6,2765.5,0.07667579]
[1643802140161,0.00823846,2765.6,2765.4,0.99208163]
[1643802146260,0.00823846,2765.6,2765.5,0.07667579]
[1643802146762,0.00823846,2765.6,2764.7,0.91540584]
[1643802146763,4.5,2765.5,2764.7,0.91540584]
[1643802146963,3.20235871,2765.4,2764.4,0.91540584]
[1643802147169,3.20235871,2765.4,2764.3,0.1808]
[1643802147170,0.82941469,2764.5,2764.3,0.1808]
[1643802147362,0.82941469,2764.5,2764.2,0.91540584]
[1643802147560,0.82941469,2764.5,2763.9,1.37639267]
[1643802147561,0.82941469,2764.5,2764.0,0.91540584]
[1643802148235,0.82941469,2764.5,2763.9,0.91540584]
[1643802149030,1.96542346,2764.4,2763.8,1.09610584]
[1643802149228,0.82941469,2764.5,2763.8,1.09610584]
[1643802149630,1.96504441,2764.4,2763.8,1.09610584]
[1643802149832,1.96504441,2764.4,2763.7,0.00172828]
[1643802149833,1.96504441,2764.4,2763.7,1.09783412]
[1643802150032,1.96504441,2764.4,2763.7,0.91713412]
[1643802150230,0.1807,2764.6,2763.8,0.00172828]
[1643802150231,2.17970517,2764.6,2763.8,0.00172828]
[1643802150433,2.17970517,2764.6,2763.9,0.91540584]
[1643802150434,0.1807,2764.6,2763.9,0.91540584]
[1643802150730,2.45489473,2765.1,2764.0,0.91540584]
[1643802150731,0.1807,2764.9,2764.0,0.91540584]
[1643802150930,0.1807,2765.0,2763.9,0.91540584]
[1643802151332,0.51894897,2765.0,2764.0,2.91540584]
[1643802151765,0.72494559,2764.9,2764.0,2.0]
[1643802151970,0.1807,2764.8,2763.9,0.91540584]
[1643802152167,0.1807,2764.8,2763.8,0.91713412]
[1643802152566,0.1807,2764.8,2763.8,0.00172828]
[1643802152767,0.1807,2764.8,2763.8,0.18242828]
[1643802153169,0.1807,2764.8,2763.8,2.03244628]
[1643802153370,0.1807,2764.8,2763.8,2.01599919]
[1643802153770,0.00823846,2764.3,2763.8,2.01599919]
[1643802153972,0.00823846,2764.3,2763.8,0.18242828]
[1643802158729,0.00823846,2764.3,2763.8,0.00172828]
[1643802158928,0.00823846,2764.3,2763.7,0.1807]
[1643802159168,0.00823846,2764.3,2763.7,1.09610584]
[1643802159574,0.00823846,2764.3,2763.7,1.09783412]
[1643802159773,0.00823846,2764.3,2763.7,0.517893]
[1643802159972,0.00823846,2764.3,2763.7,1.43329884]
[1643802162912,0.00823846,2764.3,2763.7,0.517893]
[1643802163717,0.00823846,2764.3,2763.7,0.18242828]
[1643802163919,0.00823846,2764.3,2763.7,0.00172828]
[1643802164117,0.00823846,2764.3,2763.5,0.1807]
[1643802164319,2.18913846,2764.3,2763.4,0.00172828]
[1643802164519,0.523,2764.2,2763.4,0.00172828]
[1643802164720,0.523,2764.2,2763.1,0.1809]
[1643802164721,0.1809,2764.1,2763.2,0.00172828]
[1643802165020,0.7039,2764.1,2763.2,0.00172828]
[1643802165419,0.523,2764.1,2763.2,0.00172828]
[1643802165819,2.04977831,2764.0,2763.2,0.00172828]
[1643802166220,2.76794266,2764.0,2763.2,0.00172828]
[1643802167465,2.94884266,2764.0,2763.2,0.00172828]
[1643802168065,2.86849773,2764.0,2763.2,0.00172828]
[1643802170268,0.89781752,2764.0,2763.2,0.00172828]
[1643802170715,2.87148088,2764.0,2763.2,0.00172828]
[1643802170913,0.89781752,2764.0,2763.2,0.00172828]
[1643802171316,0.89781752,2764.0,2763.0,0.00172828]
[1643802172116,0.89781752,2764.0,2763.1,0.72477704]
[1643802172314,0.71691752,2764.0,2763.2,0.00172828]
[1643802173516,2.70513166,2764.0,2763.2,0.00172828]
[1643802173717,0.71691752,2764.0,2763.2,0.00172828]
[1643802174561,2.68904088,2764.0,2763.2,0.00172828]
[1643802174761,3.0360322,2764.0,2763.2,0.00172828]
[1643802174963,0.71691752,2764.0,2763.2,0.00172828]
[1643802175564,2.72325666,2764.0,2763.2,0.00172828]
[1643802175767,2.71372263,2764.0,2763.2,0.00172828]
[1643802176164,0.71691752,2764.0,2763.2,0.00172828]
[1643802176964,1.97472353,2763.9,2763.2,0.00172828]
[1643802177164,2.49772353,2763.9,2763.2,0.00172828]
[1643802178212,2.67873353,2763.9,2763.2,0.00172828]
[1643802179213,2.85963353,2763.9,2763.2,0.00172828]
[1643802179412,2.85963353,2763.9,2762.8,0.18262828]
[1643802180215,2.85963353,2763.9,2762.8,0.18104061]
[1643802182164,2.85963353,2763.9,2762.8,0.00172828]
[1643802182366,0.88944093,2763.5,2762.8,0.00172828]
[1643802184972,0.36191,2763.7,2762.8,0.00172828]
[1643802185828,0.76467634,2763.7,2762.8,0.00172828]
[1643802186230,0.58377634,2763.7,2762.8,0.00172828]
[1643802186427,0.40276634,2763.7,2762.8,0.00172828]
[1643802186626,4.16747035,2763.8,2762.8,0.00172828]
[1643802187828,0.41084887,2763.5,2762.8,0.00172828]
[1643802188029,4.16747035,2763.8,2762.8,0.00172828]
[1643802188632,4.16747035,2763.8,2762.9,0.9458709]
[1643802188837,4.16747035,2763.8,2763.0,0.00172828]
[1643802191459,4.16747035,2763.8,2763.0,0.00172828]
[1643802192660,2.20035732,2763.8,2763.0,0.00172828]
[1643802193106,4.14703429,2763.8,2763.0,0.00172828]
[1643802193305,4.14703429,2763.8,2762.7,1.82022584]
[1643802193306,4.14703429,2763.8,2762.7,0.91713412]
[1643802193514,1.6089283,2763.7,2762.7,0.91713412]
[1643802193810,1.6089283,2763.7,2762.7,0.00172828]
[1643802193811,4.17191265,2763.6,2762.7,0.00172828]
[1643802194012,4.17191265,2763.6,2762.4,0.91540584]
[1643802194013,2.23862455,2763.5,2762.8,0.00172828]
[1643802194306,0.77418484,2763.0,2762.8,0.00172828]
[1643802194510,0.77418484,2763.0,2762.2,4.6813]
[1643802194511,2.40716768,2762.9,2762.4,0.00172828]
[1643802194708,3.68786768,2762.9,2762.4,0.00172828]
[1643802196853,3.68786768,2762.9,2762.2,0.00172828]
[1643802198157,0.9052346,2762.8,2762.2,0.00172828]
[1643802198358,1.96752236,2762.7,2762.2,0.00172828]
[1643802198557,1.96958543,2762.7,2762.0,3.89442828]
[1643802198756,1.96958543,2762.7,2762.0,0.00172828]
[1643802199856,1.1355346,2762.8,2762.0,0.00172828]
[1643802200058,1.4282346,2762.8,2762.0,0.00172828]
[1643802200698,0.41688644,2762.7,2762.0,0.00172828]
[1643802200899,0.523,2762.8,2762.0,0.00172828]
[1643802201304,2.49616882,2762.8,2762.0,0.00172828]
[1643802202706,0.34293398,2762.3,2762.0,0.00172828]
[1643802202924,0.34293398,2762.3,2761.9,3.0145]
[1643802203117,2.33464668,2762.3,2761.8,0.18262828]
[1643802203308,2.33464668,2762.3,2761.8,0.00172828]
[1643802203509,2.33464668,2762.3,2761.6,0.18262828]
[1643802203711,0.34293398,2762.3,2761.6,0.18262828]
[1643802203912,0.34293398,2762.3,2761.6,0.00172828]
[1643802204166,1.45641295,2762.2,2761.4,0.18262828]
[1643802204460,0.83285385,2761.9,2761.5,0.00179124]
[1643802204654,0.34293398,2762.3,2761.5,0.00179124]
[1643802205052,1.24836608,2762.3,2761.3,0.18269124]
[1643802205651,2.15377608,2762.3,2761.3,0.18269124]
[1643802206653,0.70472539,2762.0,2761.3,0.18269124]
[1643802207755,0.9054466,2762.1,2761.3,0.18269124]
[1643802210512,0.81823295,2762.0,2761.3,0.18269124]
[1643802211970,0.81823295,2762.0,2761.3,0.00179124]
[1643802213579,0.99924295,2762.0,2761.3,0.00179124]
[1643802222151,0.99924295,2762.0,2761.2,2.24291898]
[1643802224820,3.5149119,2762.2,2761.2,4.09186427]
[1643802224821,0.36191,2762.2,2761.2,4.09186427]
[1643802225017,0.1809,2762.3,2761.2,4.09186427]
[1643802225218,1.3472,2762.4,2761.2,4.09186427]
[1643802225917,2.45883504,2762.4,2761.5,0.83708718]
[1643802226116,2.14090211,2762.4,2761.5,0.83708718]
[1643802226517,1.3472,2762.4,2761.5,0.83708718]
[1643802226760,1.3472,2762.4,2761.6,1.83152762]
[1643802227057,1.1663,2762.4,2761.5,0.83708718]
[1643802227362,0.1809,2762.5,2761.6,1.97362341]
[1643802227558,1.3793,2762.8,2762.1,0.90198397]
[1643802227759,1.3793,2762.8,2762.2,1.88098774]
[1643802227760,0.1809,2762.8,2762.2,1.88098774]
[1643802227966,0.13819997,2763.1,2762.2,1.88098774]
[1643802227967,0.1809,2763.0,2762.2,1.88098774]
[1643802228268,0.31909997,2763.1,2762.2,1.88098774]
[1643802229063,0.31909997,2763.1,2762.1,0.90198397]
[1643802229267,1.53504478,2763.0,2762.1,0.90198397]
[1643802229665,1.71605478,2763.0,2762.1,0.90198397]
[1643802229867,1.53504478,2762.9,2762.1,0.90198397]
[1643802231216,1.53504478,2762.9,2762.2,0.00179377]
[1643802232215,0.18101,2763.0,2762.2,0.00179377]
[1643802232416,1.53506338,2762.9,2762.2,0.00179377]
[1643802232817,0.18101,2763.0,2762.2,0.00179377]
[1643802233021,1.53506483,2762.9,2762.2,0.00179377]
[1643802234276,1.48506483,2762.9,2762.2,0.00179377]
[1643802234478,1.48506483,2762.9,2762.2,1.82341251]
[1643802234676,1.48506483,2762.9,2762.3,0.00179377]
[1643802235481,0.1809,2763.2,2762.3,0.00179377]
[1643802235780,0.13819997,2763.6,2762.4,0.1809]
[1643802235781,0.1809,2763.5,2762.4,0.1809]
[1643802235983,0.13819997,2763.6,2762.4,2.1809]
[1643802236580,0.13819997,2763.6,2762.7,0.83969454]
[1643802236779,0.13819997,2763.6,2762.7,1.02059454]
[1643802237183,0.18101,2763.8,2762.7,3.02059454]
[1643802238111,0.35658107,2763.7,2762.7,3.02059454]
[1643802238915,0.35658107,2763.7,2762.7,3.92534454]
[1643802239113,0.35658107,2763.7,2762.7,2.83969454]
[1643802240313,0.35658107,2763.7,2762.7,0.83969454]
[1643802240916,0.35658107,2763.7,2762.6,0.1809]
[1643802242159,0.9049483,2763.6,2762.6,0.1809]
[1643802242358,0.9049483,2763.6,2762.5,0.1809]
[1643802242962,0.38323225,2762.8,2762.5,0.1809]
[1643802243165,1.51773225,2762.8,2762.4,0.1809]
[1643802243364,1.51773225,2762.8,2762.1,1.31839377]
[1643802243563,0.91920419,2762.7,2762.1,0.18269377]
[1643802243962,0.91920419,2762.7,2762.1,0.43269377]
[1643802244764,0.91920419,2762.7,2762.1,0.25179377]
[1643802245164,0.38323225,2762.8,2762.1,0.25179377]
[1643802245607,0.38323225,2762.8,2762.2,1.80596491]
[1643802245810,0.38323225,2762.8,2762.2,0.00179377]
[1643802246008,0.36191,2763.2,2762.2,1.81019504]
[1643802246009,1.36191,2763.2,2762.2,1.81019504]
[1643802246208,0.67570096,2763.1,2762.2,2.50028351]
[1643802246608,0.67570096,2763.1,2762.2,0.69188224]
[1643802246809,0.67570096,2763.1,2762.2,0.00179377]
[1643802248114,1.36191,2763.2,2762.2,1.89607518]
[1643802248316,1.18101,2763.2,2762.2,1.89607518]
[1643802249362,1.93517316,2763.2,2762.2,1.89607518]
[1643802249762,0.35092094,2762.8,2762.4,0.25]
[1643802254926,0.93517316,2763.2,2762.4,0.25]
[1643802255124,1.53499031,2763.1,2762.4,0.25]
[1643802256960,0.43280828,2762.6,2762.4,0.25]
[1643802257761,0.93517316,2763.2,2762.4,0.25]
[1643802257967,1.53498454,2763.1,2762.4,0.25]
[1643802258768,0.35937138,2762.7,2762.4,0.25]
[1643802259773,0.93517316,2763.2,2762.4,0.25]
[1643802259971,1.53494246,2763.1,2762.4,0.25]
[1643802262415,1.53494246,2763.1,2762.5,1.84059844]
[1643802262815,1.53494246,2763.1,2762.5,1.82498157]
[1643802263021,1.53494246,2763.1,2762.4,0.25]
[1643802263222,1.53494246,2763.1,2762.5,1.82687385]
[1643802263420,1.53494246,2763.1,2762.5,1.82952451]
[1643802263626,0.42202514,2762.8,2762.4,0.25]
[1643802264267,0.93517316,2763.2,2762.4,0.25]
[1643802264467,1.53497469,2763.1,2762.4,0.25]
[1643802265268,0.32382724,2762.8,2762.4,0.25]
[1643802266670,0.93517316,2763.2,2762.4,0.25]
[1643802266869,1.5349994,2763.1,2762.4,0.25]
[1643802267273,1.5349994,2763.1,2762.5,1.82942039]
[1643802267471,1.5349994,2763.1,2762.4,0.25]
[1643802267911,0.3493646,2762.8,2762.4,0.25]
[1643802268118,0.3493646,2762.8,2762.5,1.80217391]
[1643802268319,0.3493646,2762.8,2762.5,1.83150784]
[1643802268719,0.75416316,2763.2,2762.4,0.25]
[1643802268919,1.53495486,2763.1,2762.4,0.25]
[1643802269724,0.36958103,2762.9,2762.4,0.25]
[1643802269923,1.53495486,2762.8,2762.5,1.80635208]
[1643802270132,1.53495486,2762.8,2762.5,1.86787564]
[1643802270319,0.75416316,2763.2,2762.5,1.86787564]
[1643802270520,1.53490297,2763.1,2762.5,1.86787564]
[1643802271120,1.53490297,2763.1,2762.4,0.25]
[1643802271322,0.44907562,2763.0,2762.5,1.80702389]
[1643802271522,0.44907562,2763.0,2762.5,1.86984775]
[1643802271523,1.53490297,2762.9,2762.5,1.86984775]
[1643802273768,1.148,2763.3,2762.5,1.86984775]
[1643802273967,1.5348553,2763.2,2762.5,1.86984775]
[1643802274573,1.959079,2763.2,2762.5,1.86984775]
[1643802274873,1.5348553,2763.1,2762.5,2.63833877]
[1643802275069,1.5348553,2763.0,2762.5,2.63833877]
[1643802275268,1.5348553,2762.9,2762.5,2.63833877]
[1643802275511,1.5348553,2762.8,2762.5,2.63833877]
[1643802275712,1.148,2763.3,2762.5,2.63833877]
[1643802275913,1.53489278,2763.2,2762.5,2.63833877]
[1643802277620,1.53489278,2763.1,2762.5,2.63833877]
[1643802277815,0.1809,2763.5,2762.5,5.65877461]
[1643802277816,1.53489278,2763.0,2762.5,5.65877461]
[1643802278017,1.1791,2763.6,2762.6,3.23729]
[1643802278218,1.53475432,2763.5,2762.7,2.20089858]
[1643802278419,1.53475432,2763.5,2762.8,0.25]
[1643802278420,1.94080222,2763.5,2762.8,0.25]
[1643802278719,1.53475432,2763.4,2762.9,2.07259713]
[1643802279020,1.53475432,2763.4,2762.9,2.97731713]
[1643802279281,0.4060479,2763.5,2762.9,2.97731713]
[1643802279493,1.53473312,2763.3,2762.9,2.97731713]
[1643802279684,1.53473312,2763.2,2762.9,2.97731713]
[1643802279884,1.53473312,2763.1,2763.0,0.80674404]
[1643802280080,1.78610757,2763.8,2763.0,2.77007349]
[1643802280081,1.53473312,2763.7,2763.0,2.77007349]
[1643802280285,1.53473312,2763.6,2763.0,2.77007349]
[1643802280485,1.53473312,2763.7,2763.0,2.77007349]
[1643802280681,1.53473312,2763.6,2763.0,2.77007349]
[1643802280882,1.53473312,2763.5,2763.0,2.77007349]
[1643802281084,1.53473312,2763.4,2763.0,2.77007349]
[1643802281286,1.53473312,2763.3,2763.0,2.77007349]
[1643802281484,1.53473312,2763.2,2763.0,3.67474349]
[1643802281683,0.86602583,2763.8,2763.1,1.87801204]
[1643802281884,0.86602583,2763.8,2763.1,2.78266204]
[1643802282083,1.5347117,2763.7,2763.1,2.78266204]
[1643802282488,1.5347117,2763.6,2763.1,2.78266204]
[1643802282687,1.5347117,2763.5,2763.1,2.78266204]
[1643802282922,1.53455972,2763.4,2763.1,2.78266204]
[1643802283125,1.53455972,2763.9,2763.1,2.78266204]
[1643802283323,1.53455024,2763.8,2763.1,2.78266204]
[1643802283523,1.53455024,2763.7,2763.1,2.78266204]
[1643802283724,1.53455024,2763.6,2763.1,2.78266204]
[1643802283921,1.53455024,2763.5,2763.1,3.68731204]
[1643802284124,0.3844791,2764.0,2763.1,3.68731204]
[1643802284322,1.53453958,2763.9,2763.4,0.25]
[1643802288082,1.53453958,2763.9,2763.0,0.1809]
[1643802288083,2.0,2763.8,2763.0,0.1809]
[1643802288278,1.53453958,2763.7,2763.0,0.1809]
[1643802289477,2.27206613,2763.7,2763.0,0.1809]
[1643802289677,1.53453958,2763.6,2762.9,1.191]
[1643802290917,0.44297391,2763.1,2762.9,1.191]
[1643802291121,1.98582655,2763.7,2762.7,3.1022]
[1643802291319,1.53473886,2763.6,2762.7,3.1022]
[1643802292719,0.40704555,2763.3,2762.7,3.1022]
[1643802293023,1.53473886,2763.2,2762.7,4.00697]
[1643802293326,1.53473886,2763.2,2762.7,0.90477]
[1643802294564,0.73752655,2763.7,2762.9,0.9047]
[1643802294765,1.53476171,2763.6,2762.9,0.9047]
[1643802295362,0.42826887,2763.4,2762.9,0.9047]
[1643802295561,1.53476171,2763.3,2762.9,0.9047]
[1643802296965,1.53476171,2763.3,2762.8,0.9047]
[1643802298427,1.53476171,2763.3,2762.8,1.80945]
[1643802299028,1.53476171,2763.3,2762.8,0.90475]
[1643802300530,1.53476171,2763.3,2762.8,1.80947]
[1643802302972,1.53476171,2763.3,2762.6,7.51385249]
[1643802303975,0.1809,2763.6,2762.7,0.91540584]
[1643802304176,0.1809,2763.9,2762.9,0.91540584]
[1643802304378,1.53451888,2763.8,2763.0,4.06327008]
[1643802304677,0.1809,2764.2,2763.2,0.91540584]
[1643802304874,0.32872461,2764.3,2763.7,1.83948605]
[1643802305082,1.71508571,2764.2,2763.8,2.91229912]
[1643802305417,1.48438571,2764.1,2763.8,2.91229912]
[1643802305617,0.0027395,2764.6,2763.8,2.91229912]
[1643802306619,0.32632533,2764.5,2763.8,2.91229912]
[1643802307021,0.32632533,2764.5,2763.8,2.00794912]
[1643802307223,0.32632533,2764.5,2763.7,2.74383605]
[1643802307422,0.50702533,2764.5,2763.7,2.74383605]
[1643802307820,0.50702533,2764.5,2763.6,1.97697111]
[1643802308022,0.50702533,2764.5,2763.6,2.88149111]
[1643802308823,0.50702533,2764.5,2763.6,3.57104453]
[1643802309267,0.0027395,2764.4,2764.0,0.8371126]
[1643802309466,0.0027395,2764.4,2763.6,3.57104453]
[1643802309467,0.7996827,2763.9,2763.6,3.57104453]
[1643802309666,0.0027395,2764.4,2763.6,3.57104453]
[1643802311175,0.0027395,2764.4,2763.6,2.88149111]
[1643802313422,0.0027395,2764.4,2763.6,0.90452]
[1643802314022,0.0027395,2764.4,2763.7,1.86903419]
[1643802315220,0.0027395,2764.4,2763.8,0.90445]
[1643802315420,0.0027395,2764.4,2763.9,1.86404326]
[1643802315619,0.0027395,2764.7,2763.9,1.86404326]
[1643802315825,0.0027395,2764.7,2763.9,2.76841326]
[1643802316774,0.0027395,2764.7,2764.0,0.9529231]
[1643802316967,0.0027395,2764.7,2764.1,1.81418181]
[1643802318372,0.0027395,2764.8,2764.1,1.81418181]
[1643802320920,0.0027395,2764.8,2764.1,1.83050534]
[1643802321123,0.0027395,2764.8,2764.1,1.83553113]
[1643802321729,0.0027395,2764.8,2764.2,1.38497]
[1643802321937,0.0027395,2765.0,2764.3,2.0]
[1643802322127,0.0027395,2765.0,2764.4,0.7037]
[1643802322326,0.0027395,2765.0,2764.9,0.85284596]
[1643802322527,0.0027395,2765.3,2764.9,1.30137348]
[1643802323126,2.45638195,2765.4,2764.9,2.20538348]
[1643802323425,0.0027395,2765.7,2764.9,2.20538348]
[1643802323827,0.0027395,2765.7,2765.0,0.90401]
[1643802324027,0.0027395,2765.7,2765.1,2.04390934]
[1643802324768,0.0027395,2765.8,2765.2,1.80787]
[1643802324967,0.0027395,2765.8,2765.3,1.8827534]
[1643802325367,9.92638195,2765.9,2765.3,1.8827534]
[1643802325567,1.53370527,2765.8,2765.3,1.8827534]
[1643802325771,1.53370527,2765.8,2765.2,1.80787]
[1643802326073,1.53644477,2765.8,2765.3,1.8114694]
[1643802326472,1.53644477,2765.8,2765.2,1.80787]
[1643802326768,1.53644477,2765.8,2765.3,1.80837004]
[1643802326969,1.53644477,2765.8,2765.3,1.82017705]
[1643802327173,2.45912145,2765.8,2765.2,1.80787]
[1643802327369,1.53370527,2765.7,2765.2,1.80787]
[1643802327570,1.53370527,2765.7,2765.3,1.81808278]
[1643802328422,0.0027395,2766.0,2765.5,0.34755182]
[1643802328625,0.0027395,2766.0,2765.6,3.01215014]
[1643802328626,1.53357817,2766.0,2765.6,3.01215014]
[1643802328926,1.53357817,2765.9,2765.6,3.75852384]
[1643802329124,0.0027395,2766.3,2765.6,3.75852384]
[1643802329323,0.0027395,2766.3,2765.7,1.60736]
[1643802329520,1.53611613,2766.3,2765.8,2.41647438]
[1643802329725,0.0027395,2766.3,2765.8,2.93947438]
[1643802329920,1.53606629,2766.8,2765.8,3.84313438]
[1643802330124,1.53606629,2766.8,2766.2,0.86901124]
[1643802330328,1.53606629,2766.8,2766.3,2.18442964]
[1643802330525,1.53332679,2766.7,2766.3,0.54901095]
[1643802330721,0.0027395,2766.8,2766.2,1.39201124]
[1643802331772,0.0027395,2766.8,2766.2,2.29555124]
[1643802332175,0.0027395,2766.8,2766.2,3.19912124]
[1643802334783,0.0027395,2766.8,2766.4,0.90349]
[1643802335001,0.3,2767.0,2766.4,0.90349]
[1643802335818,0.3,2767.0,2766.4,1.80695]
[1643802338824,0.3,2767.0,2766.4,1.55695]
[1643802340670,0.379174,2767.0,2766.4,1.55695]
[1643802341471,0.36690993,2767.0,2766.7,0.77865519]
[1643802342294,0.65229035,2766.5,2766.4,2.38543935]
[1643802343827,0.65229035,2766.5,2766.4,4.27173864]
[1643802344227,0.0027395,2766.9,2766.4,4.27173864]
[1643802344429,0.1807,2767.5,2766.7,0.90341]
[1643802344430,0.0027395,2767.4,2766.7,0.90341]
[1643802344631,0.0027395,2767.4,2766.8,3.3263952]
[1643802344830,0.0027395,2767.4,2766.9,0.49530093]
[1643802345029,0.00918672,2767.8,2767.0,2.70365]
[1643802345231,0.00918672,2767.8,2767.5,0.38128524]
[1643802345433,0.00918672,2767.8,2767.6,0.74169214]
[1643802345629,0.00644722,2767.8,2767.6,0.74169214]
[1643802346128,0.00644722,2767.8,2767.6,0.74815915]
[1643802346770,0.00644722,2767.8,2767.7,1.96046511]
[1643802346970,0.00644722,2767.8,2767.3,2.26587727]
[1643802347174,0.00644722,2767.8,2767.3,2.87040441]
[1643802347570,0.00644722,2767.8,2767.4,0.40900704]
[1643802347977,0.00644722,2767.8,2767.5,2.74756089]
[1643802348376,0.00644722,2767.8,2767.3,0.78517714]
[1643802348377,0.00644722,2767.8,2767.3,2.13741134]
[1643802348576,0.00644722,2767.8,2767.3,0.00452714]
[1643802348773,0.94934722,2767.8,2767.3,0.00452714]
[1643802349577,1.8505634,2767.8,2767.3,0.00452714]
[1643802350180,0.1806,2767.7,2767.3,0.00452714]
[1643802350630,0.1806,2767.7,2766.3,0.36125]
[1643802350824,0.1806,2767.7,2766.5,0.85995906]
[1643802350825,0.38372285,2767.4,2766.5,0.85995906]
[1643802351027,1.08620778,2767.3,2766.6,1.89240506]
[1643802351224,1.08620778,2767.3,2766.5,0.85995906]
[1643802351625,0.00274342,2767.2,2766.6,1.88070306]
[1643802351828,0.00274342,2767.2,2766.5,0.85995906]
[1643802352026,0.00274342,2767.2,2766.6,1.87700634]
[1643802352425,0.1807,2767.6,2766.6,1.89289678]
[1643802352426,0.18344342,2767.6,2766.6,1.89289678]